bitfinex/quotes_SOLUSD_20250626
["timestamp","ask_amount","ask_price","bid_price","bid_amount"]
[1750916648974,31.6560479,144.33,144.29,28.56]
[1750916649174,5.6560479,144.32,144.29,28.56]
[1750916650776,5.6560479,144.32,144.28,40.4360479]
[1750916652683,5.6560479,144.32,144.28,34.78]
[1750916653768,26.0,144.33,144.28,34.78]
[1750916653970,5.6560479,144.32,144.28,34.78]
[1750916654778,5.6560479,144.32,144.28,40.4360479]
[1750916654996,31.6560479,144.33,144.28,40.4360479]
[1750916656299,26.0,144.33,144.28,40.4360479]
[1750916656505,31.6560479,144.33,144.28,40.4360479]
[1750916656701,31.6560479,144.33,144.29,18.64964886]
[1750916657001,5.6560479,144.33,144.29,18.64964886]
[1750916659202,5.6560479,144.32,144.29,18.64964886]
[1750916661086,26.0,144.35,144.29,18.64964886]
[1750916661295,5.6560479,144.32,144.29,18.64964886]
[1750916661598,5.6560479,144.31,144.28,6.22]
[1750916661895,5.6560479,144.3,144.28,6.22]
[1750916662092,26.0,144.33,144.25,1.6019]
[1750916662093,5.6560479,144.29,144.25,1.6019]
[1750916662307,5.6560479,144.26,144.25,0.02]
[1750916662815,5.6560479,144.27,144.25,0.02]
[1750916663728,5.6560479,144.28,144.25,0.02]
[1750916663925,5.6560479,144.29,144.25,0.02]
[1750916664817,6.2962,144.32,144.25,5.6760479]
[1750916665020,5.6560479,144.3,144.26,5.6560479]
[1750916665817,148.0857,144.34,144.26,24.30569676]
[1750916666010,148.0857,144.34,144.27,5.6560479]
[1750916666011,5.6560479,144.31,144.27,5.6560479]
[1750916666609,5.6560479,144.31,144.26,31.23749253]
[1750916666998,18.1560479,144.31,144.27,5.6560479]
[1750916667421,5.6560479,144.31,144.27,5.6560479]
[1750916667599,5.6560479,144.3,144.26,25.58144463]
[1750916667801,5.6560479,144.31,144.27,5.6560479]
[1750916668637,5.6560479,144.31,144.26,25.58144463]
[1750916668810,5.6560479,144.31,144.27,5.6560479]
[1750916669412,174.0857,144.34,144.27,5.6560479]
[1750916669604,5.10525789,144.33,144.28,5.6560479]
[1750916669809,10.76130579,144.32,144.28,5.6560479]
[1750916670023,5.6560479,144.33,144.28,11.8760479]
[1750916671946,5.6560479,144.33,144.29,5.6560479]
[1750916673318,5.6560479,144.33,144.29,12.58649522]
[1750916674521,5.10451192,144.34,144.29,12.58649522]
[1750916674728,5.6560479,144.34,144.29,12.58649522]
[1750916675523,5.6560479,144.33,144.29,12.58649522]
[1750916675726,5.6560479,144.33,144.29,5.6560479]
[1750916676632,5.6560479,144.32,144.28,6.22]
[1750916677332,10.7599115,144.32,144.28,6.22]
[1750916677545,5.6560479,144.32,144.28,6.22]
[1750916679444,5.6560479,144.32,144.28,11.8760479]
[1750916679943,5.6560479,144.32,144.28,18.80688977]
[1750916680235,5.6560479,144.33,144.28,18.80688977]
[1750916684440,26.0,144.35,144.28,18.80688977]
[1750916684636,5.6560479,144.33,144.28,18.80688977]
[1750916686115,26.0,144.35,144.29,5.6560479]
[1750916686316,5.6560479,144.33,144.29,5.6560479]
[1750916688943,5.6560479,144.33,144.29,12.58643515]
[1750916692144,5.6560479,144.33,144.29,18.64964886]
[1750916692342,5.6560479,144.32,144.28,11.8760479]
[1750916692527,5.6560479,144.32,144.28,6.22]
[1750916692849,26.0,144.34,144.28,6.22]
[1750916693030,5.6560479,144.32,144.28,6.22]
[1750916693542,5.6560479,144.32,144.28,11.8760479]
[1750916693773,5.6560479,144.3,144.26,1.5158]
[1750916694134,5.6560479,144.29,144.26,1.5158]
[1750916695631,5.6560479,144.3,144.26,1.5158]
[1750916698539,5.6560479,144.3,144.26,18.64964886]
[1750916698747,5.6560479,144.29,144.26,18.64964886]
[1750916698927,5.6560479,144.27,144.25,0.02]
[1750916699263,5.6560479,144.26,144.25,0.02]
[1750916702333,17.68437436,144.26,144.25,0.02]
[1750916704535,12.58797636,144.26,144.25,0.02]
[1750916704754,17.68437436,144.26,144.25,0.02]
[1750916705064,5.6560479,144.27,144.25,0.02]
[1750916705368,5.096398,144.3,144.25,0.02]
[1750916705580,5.6560479,144.29,144.25,0.02]
[1750916705757,5.6560479,144.28,144.25,0.02]
[1750916707762,5.6560479,144.27,144.25,0.02]
[1750916708439,26.0,144.27,144.25,0.02]
[1750916708644,5.6560479,144.26,144.25,0.02]
[1750916714757,31.6560479,144.27,144.25,0.02]
[1750916715069,5.6560479,144.27,144.25,0.02]
[1750916717573,26.0,144.29,144.25,0.02]
[1750916717866,5.6560479,144.27,144.25,0.02]
[1750916719475,5.6560479,144.26,144.25,0.02]
[1750916729673,26.0,144.29,144.25,0.02]
[1750916729876,5.6560479,144.28,144.25,0.02]
[1750916732174,5.6560479,144.29,144.25,0.02]
[1750916732560,5.6560479,144.29,144.25,5.6760479]
[1750916732760,5.6560479,144.29,144.25,0.02]
[1750916734485,5.6560479,144.28,144.25,0.02]
[1750916735881,5.6560479,144.29,144.25,0.02]
[1750916736384,5.6560479,144.3,144.25,24.32569676]
[1750916736681,5.6560479,144.3,144.26,5.6560479]
[1750916737889,5.6560479,144.3,144.25,31.25796222]
[1750916739982,5.6560479,144.29,144.25,18.66964886]
[1750916740182,5.6560479,144.28,144.25,18.66964886]
[1750916740691,5.6560479,144.27,144.25,0.02]
[1750916740872,5.6560479,144.26,144.25,0.02]
[1750916741889,31.09171606,144.28,144.25,0.02]
[1750916742090,5.6560479,144.26,144.25,0.02]
[1750916749188,5.6560479,144.27,144.25,0.02]
[1750916749986,5.6560479,144.26,144.25,0.02]
[1750916751479,12.58797636,144.26,144.25,0.02]
[1750916751712,26.0,144.23,144.22,0.02]
[1750916752007,31.6560479,144.23,144.22,0.02]
[1750916752178,36.75323601,144.23,144.22,0.02]
[1750916753606,43.68660632,144.23,144.22,0.02]
[1750916753903,31.6560479,144.23,144.22,0.02]
[1750916754114,43.68081233,144.23,144.22,0.02]
[1750916754806,36.74744202,144.23,144.22,0.02]
[1750916756396,43.68081233,144.23,144.22,0.02]
[1750916759606,55.98081233,144.23,144.22,0.02]
[1750916759993,50.88941821,144.23,144.22,0.02]
[1750916763919,43.9560479,144.23,144.22,0.02]
[1750916766207,12.3,144.23,144.22,0.02]
[1750916767608,5.6560479,144.25,144.22,0.02]
[1750916768708,26.0,144.26,144.22,0.02]
[1750916768910,31.6560479,144.25,144.22,0.02]
[1750916770217,5.6560479,144.24,144.22,0.02]
[1750916771713,5.6560479,144.23,144.22,0.02]
[1750916775521,32.93242495,144.25,144.22,0.02]
[1750916775819,5.6560479,144.23,144.22,0.02]
[1750916777922,17.9560479,144.24,144.22,0.02]
[1750916781932,12.3,144.24,144.22,0.02]
[1750916782101,17.9560479,144.24,144.22,0.02]
[1750916783427,12.3,144.24,144.22,0.02]
[1750916783926,12.3,144.24,144.22,5.6760479]
[1750916784632,12.3,144.24,144.22,0.02]
[1750916786632,5.6560479,144.25,144.22,0.02]
[1750916786633,5.6560479,144.26,144.22,0.02]
[1750916787209,31.6560479,144.27,144.22,24.32569676]
[1750916787624,31.6560479,144.27,144.22,31.25948887]
[1750916788024,31.6560479,144.27,144.23,5.6560479]
[1750916788330,31.6560479,144.27,144.22,24.32569676]
[1750916788633,31.6560479,144.27,144.22,18.66964886]
[1750916788839,31.6560479,144.27,144.22,24.32569676]
[1750916789931,5.6560479,144.27,144.22,24.32569676]
[1750916790810,31.6560479,144.27,144.22,24.32569676]
[1750916792239,26.0,144.27,144.22,24.32569676]
[1750916792730,31.6560479,144.27,144.22,31.25948525]
[1750916792929,31.6560479,144.27,144.22,24.32569676]
[1750916794137,5.6560479,144.27,144.23,5.6560479]
[1750916796619,5.6560479,144.27,144.22,24.32569676]
[1750916798518,5.6560479,144.27,144.22,31.25953727]
[1750916799542,5.6560479,144.27,144.23,5.6560479]
[1750916799746,5.6560479,144.27,144.22,25.60348937]
[1750916799928,5.6560479,144.27,144.23,5.6560479]
[1750916803440,31.09734862,144.29,144.23,12.589325]
[1750916803626,5.6560479,144.28,144.23,12.589325]
[1750916804523,5.6560479,144.28,144.24,31.23850741]
[1750916804724,31.6560479,144.29,144.24,31.23850741]
[1750916805021,36.75805236,144.29,144.24,31.23850741]
[1750916805223,31.6560479,144.29,144.24,31.23850741]
[1750916805722,5.6560479,144.28,144.24,31.23850741]
[1750916806449,5.6560479,144.28,144.24,24.30569676]
[1750916806949,5.6560479,144.27,144.22,35.57585234]
[1750916807127,5.6560479,144.27,144.23,24.30569676]
[1750916807730,5.6560479,144.28,144.23,24.30569676]
[1750916808240,31.6560479,144.29,144.24,12.58893752]
[1750916808442,36.75773918,144.29,144.25,1.6003]
[1750916808744,31.6560479,144.29,144.25,1.6003]
[1750916812536,5.6560479,144.28,144.25,1.6003]
[1750916814354,5.6560479,144.26,144.23,6.5098]
[1750916814653,5.6560479,144.27,144.23,6.5098]
[1750916815536,5.6560479,144.27,144.23,12.1658479]
[1750916816955,5.6560479,144.27,144.23,6.5098]
[1750916817128,5.6560479,144.28,144.24,24.30569676]
[1750916817756,31.6560479,144.29,144.24,24.30569676]
[1750916817952,36.75666976,144.29,144.24,24.30569676]
[1750916818154,31.6560479,144.29,144.24,24.30569676]
[1750916818753,36.75742758,144.29,144.24,24.30569676]
[1750916818938,31.6560479,144.29,144.24,24.30569676]
[1750916819340,36.75742758,144.29,144.24,24.30569676]
[1750916819538,31.6560479,144.29,144.24,24.30569676]
[1750916819931,36.75830813,144.29,144.24,24.30569676]
[1750916820132,31.6560479,144.29,144.24,31.23854793]
[1750916820557,36.75954518,144.29,144.24,31.23854793]
[1750916820754,31.6560479,144.29,144.24,31.23854793]
[1750916821149,36.76011325,144.29,144.24,31.23854793]
[1750916821347,31.6560479,144.29,144.24,31.23854793]
[1750916821845,36.76066811,144.29,144.24,31.23854793]
[1750916822042,31.6560479,144.29,144.24,31.23854793]
[1750916822243,3.62229667,144.27,144.22,3.64229667]
[1750916822442,3.62229667,144.27,144.22,22.29194553]
[1750916823464,3.62229667,144.28,144.23,18.64964886]
[1750916823644,0.04,144.31,144.23,18.64964886]
[1750916823645,0.04,144.31,144.24,3.62229667]
[1750916823877,8.72855428,144.3,144.25,3.62229667]
[1750916824162,3.62229667,144.3,144.25,3.62229667]
[1750916824733,3.62229667,144.27,144.22,22.57626867]
[1750916825758,3.62229667,144.25,144.22,0.02]
[1750916826262,5.66154204,144.25,144.22,0.02]
[1750916826560,5.66154204,144.24,144.22,0.02]
[1750916826740,5.10745536,144.26,144.22,0.02]
[1750916826933,5.66154204,144.23,144.22,0.02]
[1750916834969,5.10121948,144.25,144.22,0.02]
[1750916835143,5.66154204,144.24,144.22,0.02]
[1750916840371,26.0,144.26,144.22,0.02]
[1750916840579,5.66154204,144.24,144.22,0.02]
[1750916842379,26.0,144.26,144.22,0.02]
[1750916842577,5.66154204,144.24,144.22,0.02]
[1750916843453,5.66154204,144.23,144.22,0.02]
[1750916856996,7.76154204,144.23,144.22,0.02]
[1750916857467,2.1,144.23,144.22,0.02]
[1750916863599,7.76154204,144.23,144.22,0.02]
[1750916864294,5.72505228,144.23,144.22,0.02]
[1750916865289,38.65842259,144.23,144.22,0.02]
[1750916865591,43.75812731,144.23,144.22,0.02]
[1750916866383,45.79894027,144.23,144.22,0.02]
[1750916866905,38.73291227,144.23,144.22,0.02]
[1750916867287,33.2181742,144.22,144.21,0.02]
[1750916867488,190.48374416,144.22,144.21,0.02]
[1750916869212,183.5498931,144.22,144.21,0.02]
[1750916870512,177.88402786,144.22,144.21,0.02]
[1750916870806,183.5498931,144.22,144.21,0.02]
[1750916873413,183.26556996,144.22,144.21,0.02]
[1750916873610,177.59970472,144.22,144.21,0.02]
[1750916873814,178.16586524,144.22,144.21,0.02]
[1750916873997,152.16586524,144.22,144.21,0.02]
[1750916874308,146.5,144.22,144.21,0.02]
[1750916874498,152.16586524,144.22,144.21,0.02]
[1750916875012,157.27135815,144.22,144.21,0.02]
[1750916875316,152.16586524,144.22,144.21,0.02]
[1750916875814,164.48894943,144.22,144.21,0.02]
[1750916875994,31.66586524,144.2,144.19,0.02]
[1750916876188,36.77077523,144.2,144.19,0.02]
[1750916876709,31.10490999,144.2,144.19,0.02]
[1750916876912,36.77077523,144.2,144.19,0.02]
[1750916883219,31.66586524,144.2,144.19,0.02]
[1750916883899,5.66586524,144.2,144.19,0.02]
[1750916884595,31.66586524,144.2,144.19,0.02]
[1750916896221,5.66586524,144.2,144.19,0.02]
[1750916896414,29.70284073,144.2,144.19,0.02]
[1750916896607,26.0,144.17,144.16,0.02]
[1750916896920,31.66586524,144.17,144.16,0.02]
[1750916898514,5.66586524,144.17,144.16,0.02]
[1750916899911,38.60212104,144.17,144.16,0.02]
[1750916900112,43.98695486,144.17,144.16,0.02]
[1750916900715,38.03676648,144.17,144.16,0.02]
[1750916901046,38.60212104,144.17,144.16,0.02]
[1750916901218,43.70263172,144.17,144.16,0.02]
[1750916901616,38.60212104,144.17,144.16,0.02]
[1750916901922,31.66586524,144.17,144.16,0.02]
[1750916902327,38.60212104,144.17,144.16,0.02]
[1750916903543,42.12381198,144.17,144.16,0.02]
[1750916904142,47.22477567,144.17,144.16,0.02]
[1750916904528,42.12381198,144.17,144.16,0.02]
[1750916904735,48.07400036,144.17,144.16,0.02]
[1750916905041,53.17394921,144.17,144.16,0.02]
[1750916905636,26.0,144.13,144.1,0.02]
[1750916905935,31.95018838,144.11,144.1,0.02]
[1750916906115,26.0,144.08,144.05,1.4856526]
[1750916906316,31.66586524,144.08,144.05,1.4856526]
[1750916906613,170.24959771,144.1,144.06,5.66586524]
[1750916906614,5.66586524,144.1,144.06,5.66586524]
[1750916907142,146.5,144.14,144.08,5.66586524]
[1750916907143,5.66586524,144.12,144.08,5.66586524]
[1750916907324,5.66586524,144.13,144.08,5.66586524]
[1750916907724,5.66586524,144.12,144.08,5.66586524]
[1750916908643,5.66586524,144.12,144.08,12.60617577]
[1750916908821,5.66586524,144.13,144.08,12.60617577]
[1750916909351,5.66586524,144.14,144.1,5.66586524]
[1750916909550,5.66586524,144.14,144.11,1.6352]
[1750916910040,31.66586524,144.14,144.11,1.6352]
[1750916911041,5.09470008,144.17,144.11,14.24015079]
[1750916911042,5.66586524,144.15,144.11,14.24015079]
[1750916912244,5.66586524,144.16,144.11,14.24015079]
[1750916915730,5.66586524,144.17,144.12,5.66586524]
[1750916916244,5.66586524,144.17,144.11,8.57428555]
[1750916916431,5.66586524,144.17,144.13,5.66586524]
[1750916917055,10.2,144.16,144.13,5.66586524]
[1750916918458,10.2,144.16,144.14,5.66586524]
[1750916918754,5.66586524,144.19,144.15,5.66586524]
[1750916918982,5.66586524,144.19,144.14,5.66586524]
[1750916920035,26.0,144.2,144.15,5.66586524]
[1750916920449,26.0,144.2,144.16,7.22646524]
[1750916921755,31.66586524,144.2,144.16,7.22646524]
[1750916921960,31.66586524,144.2,144.16,1.5606]
[1750916922126,10.2,144.19,144.16,1.5606]
[1750916922332,5.66586524,144.19,144.16,1.5606]
[1750916922631,31.66586524,144.2,144.16,1.5606]
[1750916923060,31.66586524,144.2,144.16,7.22646524]
[1750916924333,31.66586524,144.21,144.16,7.22646524]
[1750916924657,31.66586524,144.21,144.16,14.16311386]
[1750916925457,5.66586524,144.21,144.17,5.66586524]
[1750916925770,31.66586524,144.21,144.17,5.66586524]
[1750916926978,26.0,144.21,144.17,5.66586524]
[1750916927278,31.66586524,144.21,144.17,12.60202368]
[1750916927850,2.1,144.2,144.17,12.60202368]
[1750916928692,5.70586524,144.22,144.18,12.60160468]
[1750916929181,5.70586524,144.22,144.18,5.66586524]
[1750916930066,5.70586524,144.22,144.17,5.66586524]
[1750916931578,0.04,144.22,144.21,5.66586524]
[1750916931767,0.04,144.22,144.21,7.30766524]
[1750916933375,0.04,144.22,144.21,1.6418]
[1750916934083,0.04,144.22,144.21,7.30766524]
[1750916934378,0.04,144.22,144.21,32.89164597]
[1750916936357,0.04,144.22,144.21,25.9573141]
[1750916936781,0.04,144.22,144.21,32.89164597]
[1750916937169,0.04,144.22,144.21,25.9573141]
[1750916939782,0.04,144.22,144.21,33.17596911]
[1750916944594,0.04,144.22,144.21,121.87596911]
[1750916947468,0.04,144.22,144.21,147.87596911]
[1750916949292,0.04,144.26,144.25,18.64964886]
[1750916949499,0.04,144.26,144.25,149.36833724]
[1750916951089,0.04,144.26,144.25,156.30074625]
[1750916951974,0.04,144.27,144.26,0.28432314]
[1750916952177,0.04,144.27,144.26,50.59983724]
[1750916953273,0.04,144.27,144.26,146.2317657]
[1750916954789,0.04,144.27,144.26,120.2317657]
[1750916955590,0.04,144.27,144.26,120.92495854]
[1750916955796,0.04,144.28,144.27,18.933972]
[1750916955977,0.04,144.28,144.27,52.99983724]
[1750916956697,0.04,144.28,144.27,59.93128521]
[1750916958692,0.04,144.29,144.27,148.63128521]
[1750916958894,0.04,144.32,144.27,148.63128521]
[1750916958895,0.04,144.32,144.3,50.59983724]
[1750916959098,0.04,144.32,144.3,78.99983724]
[1750916960708,0.04,144.32,144.3,52.99983724]
[1750916960883,0.04,144.32,144.3,28.4]
[1750916961082,0.04,144.32,144.29,34.06586524]
[1750916961286,0.04,144.32,144.29,28.4]
[1750916961602,5.66586524,144.3,144.26,28.4]
[1750916962083,5.66586524,144.29,144.26,28.4]
[1750916962675,5.66586524,144.3,144.26,34.06586524]
[1750916964174,5.66586524,144.29,144.26,28.4]
[1750916964582,5.66586524,144.3,144.26,28.4]
[1750916965501,5.66586524,144.3,144.26,34.06586524]
[1750916966714,5.66586524,144.3,144.26,28.4]
[1750916966895,5.66586524,144.29,144.26,28.4]
[1750916967505,5.66586524,144.29,144.25,24.3155141]
[1750916967693,5.66586524,144.29,144.26,28.4]
[1750916969407,5.66586524,144.28,144.24,34.06586524]
[1750916969615,5.66586524,144.29,144.24,34.06586524]
[1750916969796,5.66586524,144.3,144.25,5.66586524]
[1750916971399,5.66586524,144.3,144.25,12.5982708]
[1750916971599,0.04,144.32,144.26,5.66586524]
[1750916971806,0.04,144.32,144.29,5.66586524]
[1750916972114,0.04,144.32,144.3,5.66586524]
[1750916973120,0.04,144.32,144.3,24.3155141]
[1750916973302,0.04,144.32,144.3,31.24552103]
[1750916977689,0.04,144.32,144.3,5.66586524]
[1750916977888,0.04,144.32,144.29,47.11630061]
[1750916978099,0.04,144.32,144.3,5.66586524]
[1750916980402,0.04,144.32,144.3,31.24552103]
[1750916982602,0.04,144.32,144.3,24.3155141]
[1750916982804,0.04,144.32,144.3,5.66586524]
[1750916983015,0.04,144.32,144.29,40.18586524]
[1750916984415,0.04,144.32,144.3,5.66586524]
[1750916985707,0.04,144.32,144.29,40.18586524]
[1750916986403,0.04,144.32,144.29,11.78586524]
[1750916986607,0.04,144.32,144.29,40.16586524]
[1750916987801,0.04,144.32,144.29,34.5]
[1750916988003,0.04,144.32,144.3,5.66586524]
[1750916988802,0.04,144.32,144.29,40.16586524]
[1750916996331,5.70586524,144.32,144.29,6.12]
[1750916996545,5.70586524,144.31,144.29,6.12]
[1750916998216,0.04,144.31,144.29,6.12]
[1750916998424,0.04,144.31,144.29,11.78586524]
[1750916998738,0.04,144.31,144.29,6.12]
[1750917003838,0.04,144.31,144.3,34.06586524]
[1750917005736,0.04,144.31,144.3,59.92984417]
[1750917006131,0.04,144.31,144.3,59.64552103]
[1750917006832,0.04,144.31,144.3,34.06586524]
[1750917008322,0.04,144.31,144.3,40.99587217]
[1750917009228,0.04,144.31,144.3,34.06586524]
[1750917009841,0.04,144.31,144.3,40.99587217]
[1750917010746,0.04,144.31,144.3,34.06586524]
[1750917016755,0.04,144.31,144.3,40.99587217]
[1750917017052,0.04,144.31,144.3,59.64552103]
[1750917018928,0.04,144.31,144.3,59.92984417]
[1750917020451,0.04,144.31,144.3,148.62984417]
[1750917021156,0.04,144.31,144.3,154.13024651]
[1750917022959,0.04,144.31,144.3,148.62984417]
[1750917023452,0.04,144.35,144.34,44.933972]
[1750917023666,0.04,144.35,144.34,78.97983724]
[1750917025357,0.04,144.35,144.34,85.9079237]
[1750917030362,0.04,144.35,144.34,174.6079237]
[1750917033162,0.04,144.38,144.35,18.933972]
[1750917033371,0.04,144.38,144.36,59.09983724]
[1750917034576,0.04,144.38,144.36,180.72696386]
[1750917042462,0.04,144.38,144.36,175.06109862]
[1750917042648,0.04,144.38,144.36,180.72696386]
[1750917045055,0.04,144.38,144.36,148.77677548]
[1750917045254,0.04,144.38,144.37,50.59983724]
[1750917045773,0.04,144.38,144.37,44.933972]
[1750917046071,0.04,144.38,144.37,24.59983724]
[1750917046370,0.04,144.38,144.37,52.95983724]
[1750917047570,0.04,144.38,144.37,47.00964886]
[1750917052476,0.04,144.38,144.37,53.93629567]
[1750917052779,0.04,144.38,144.37,59.60216091]
[1750917062568,0.04,144.38,144.37,60.57914873]
[1750917064170,0.04,144.38,144.37,59.88648405]
[1750917069685,0.04,144.38,144.36,13.04706497]
[1750917069879,0.04,144.38,144.36,34.48]
[1750917070087,0.04,144.38,144.36,6.12]
[1750917070470,0.04,144.38,144.36,11.78586524]
[1750917071773,0.04,144.38,144.36,18.71297127]
[1750917072290,0.04,144.38,144.36,11.78586524]
[1750917073268,0.04,144.38,144.37,5.66586524]
[1750917073483,0.04,144.38,144.37,34.02586524]
[1750917073970,0.04,144.38,144.37,5.66586524]
[1750917074170,0.04,144.38,144.36,47.07292715]
[1750917075990,0.04,144.38,144.36,18.71292715]
[1750917076170,0.04,144.38,144.36,47.07292715]
[1750917080391,0.04,144.38,144.37,31.52648405]
[1750917080973,12.29970182,144.44,144.38,0.28432314]
[1750917081297,12.29970182,144.44,144.39,34.02586524]
[1750917082094,11.67416524,144.44,144.39,40.95112372]
[1750917083301,11.67416524,144.44,144.4,24.3155141]
[1750917083489,5.66586524,144.46,144.41,34.02586524]
[1750917084399,5.66586524,144.46,144.41,40.95046238]
[1750917085783,5.66586524,144.47,144.42,5.66586524]
[1750917087511,6.6587,144.48,144.42,5.66586524]
[1750917087691,12.32456524,144.48,144.43,52.6755141]
[1750917087997,5.66586524,144.47,144.43,52.6755141]
[1750917089201,5.66586524,144.48,144.44,5.66586524]
[1750917089393,5.66586524,144.49,144.45,34.02586524]
[1750917090311,5.12845414,144.48,144.45,34.02586524]
[1750917090486,5.66586524,144.49,144.45,34.02586524]
[1750917090680,5.66586524,144.51,144.46,18.64964886]
[1750917090881,5.66586524,144.49,144.45,34.02586524]
[1750917091119,5.66586524,144.49,144.45,28.36]
[1750917091296,5.66586524,144.49,144.45,35.28274447]
[1750917091701,5.11604245,144.51,144.45,28.36]
[1750917092016,5.66586524,144.49,144.45,28.36]
[1750917092994,5.66586524,144.48,144.45,28.36]
[1750917093195,5.66586524,144.47,144.45,28.36]
[1750917095498,5.66586524,144.47,144.43,34.02586524]
[1750917097200,5.66586524,144.47,144.43,40.94948483]
[1750917097408,5.66586524,144.48,144.43,40.94948483]
[1750917098491,26.0,144.5,144.44,31.23866921]
[1750917098712,31.66586524,144.5,144.45,34.02586524]
[1750917099805,31.66586524,144.5,144.45,40.94858715]
[1750917102111,5.66586524,144.49,144.45,34.02586524]
[1750917103903,5.66586524,144.49,144.45,28.36]
[1750917104112,5.66586524,144.49,144.45,34.02586524]
[1750917105111,26.0,144.5,144.45,34.02586524]
[1750917105486,5.66586524,144.49,144.45,34.02586524]
[1750917110694,10.78295565,144.49,144.45,34.02586524]
[1750917110991,5.66586524,144.49,144.45,34.02586524]
[1750917111192,10.78295565,144.49,144.45,34.02586524]
[1750917111393,5.66586524,144.49,144.45,34.02586524]
[1750917111816,26.0,144.51,144.45,34.02586524]
[1750917112018,5.66586524,144.49,144.45,34.02586524]
[1750917113806,5.66586524,144.49,144.45,40.94850331]
[1750917114193,26.0,144.51,144.45,40.94850331]
[1750917114408,5.66586524,144.49,144.45,40.94850331]
[1750917114710,5.66586524,144.49,144.45,28.36]
[1750917114914,5.66586524,144.49,144.45,34.02586524]
[1750917115417,5.66586524,144.49,144.45,40.94865274]
[1750917116902,5.66586524,144.49,144.45,34.02586524]
[1750917117308,26.0,144.51,144.45,28.36]
[1750917117613,5.66586524,144.49,144.45,34.02586524]
[1750917119104,5.66586524,144.47,144.44,18.64964886]
[1750917119813,5.66586524,144.48,144.44,18.64964886]
[1750917120013,5.12453628,144.47,144.44,18.64964886]
[1750917120211,5.66586524,144.48,144.44,18.64964886]
[1750917120521,5.12446728,144.47,144.44,46.98964886]
[1750917120721,5.66586524,144.48,144.44,46.98964886]
[1750917120904,5.12550735,144.47,144.44,46.98964886]
[1750917121105,5.66586524,144.48,144.44,46.98964886]
[1750917121326,5.12550735,144.47,144.44,46.98964886]
[1750917121507,5.66586524,144.48,144.44,46.98964886]
[1750917121825,5.12551255,144.47,144.44,46.98964886]
[1750917122125,5.66586524,144.48,144.44,46.98964886]
[1750917122323,5.12533812,144.47,144.44,46.98964886]
[1750917122526,5.66586524,144.48,144.44,46.98964886]
[1750917122710,5.12520563,144.47,144.44,46.98964886]
[1750917122899,5.66586524,144.48,144.44,46.98964886]
[1750917123103,10.79081891,144.47,144.44,28.34]
[1750917123411,5.66586524,144.47,144.44,28.34]
[1750917123798,5.66586524,144.48,144.44,28.34]
[1750917123996,5.1247034,144.47,144.44,28.34]
[1750917124197,3.61163175,144.48,144.44,28.34]
[1750917124397,5.1247034,144.47,144.44,28.34]
[1750917124624,3.61163175,144.48,144.44,28.34]
[1750917124817,5.1246203,144.47,144.44,28.34]
[1750917125115,3.61163175,144.48,144.44,28.34]
[1750917125318,5.12526549,144.47,144.44,28.34]
[1750917125624,3.61163175,144.48,144.44,28.34]
[1750917125827,5.1252075,144.47,144.44,28.34]
[1750917126018,3.61163175,144.48,144.44,28.34]
[1750917126218,5.12520631,144.47,144.44,28.34]
[1750917126512,3.61163175,144.48,144.44,28.34]
[1750917126719,5.12514875,144.47,144.44,28.34]
[1750917127025,3.61163175,144.48,144.44,28.34]
[1750917127320,5.12514875,144.47,144.44,28.34]
[1750917127528,3.61163175,144.48,144.44,28.34]
[1750917127703,5.12511067,144.47,144.44,28.34]
[1750917127903,3.61163175,144.48,144.44,28.34]
[1750917128117,5.12511067,144.47,144.44,28.34]
[1750917128309,3.61163175,144.48,144.44,28.34]
[1750917128516,5.12507882,144.47,144.44,28.34]
[1750917128824,3.61163175,144.48,144.44,28.34]
[1750917129028,5.12507882,144.47,144.44,28.34]
[1750917129204,3.61163175,144.48,144.44,28.34]
[1750917129406,5.12546672,144.47,144.44,28.34]
[1750917129720,3.61163175,144.48,144.44,28.34]
[1750917129917,5.12546672,144.47,144.44,28.34]